Workbook

Sheet Comments
A1: Comment ID | B1: Comment # | C1: Name | D1: Style | E1: Index # | F1: Vote | G1: Affiliation | H1: Category | I1: Page | J1: Sub-clause | K1: Line # | L1: Comment | M1: File | N1: Proposed Change | O1: Must Be Satisfied? | P1: Disposition Status (Accepted, Rejected, Revised) | Q1: Disposition Detail | R1: Category | S1: Notes | T1: Editor Status DONE, Ready, N/A) | U1: Editor Notes | V1: Assignee
C2: Kivinen, Tero | E2: 42 | F2: No | G2: Wi-SUN Alliance | H2: Editorial | I2: 1 | J2: Frontmatter | K2: 16 | L2: Update copyright year. | N2: Change 2024 to 2025. | O2: No | T2: Assigned | V2: Editor
C3: VERSO, BILLY | E3: 314 | F3: No | G3: Qorvo | H3: Editorial | I3: 3 | J3: Abstract | K3: 2 | L3: Strange space at end of line | N3: remove it | O3: No | T3: Assigned | V3: Editor
C4: ZAKAIB, LARRY | E4: 659 | F4: Yes | G4: Spark Microsystems | H4: Editorial | I4: 3 | J4: Abstract | K4: 11 | L4: Replace "allowing at least" with "extending beyond" | N4: replace "allowing at least" with "extending beyond" | O4: Yes | T4: Assigned | V4: Editor
C5: ZAKAIB, LARRY | E5: 660 | F5: Yes | G5: Spark Microsystems | H5: Editorial | I5: 3 | J5: Keywords | K5: 19 | L5: Add low energy UWB PHY, LE UWB PHY | N5: add low energy UWB PHY, LE UWB PHY | O5: Yes | T5: Assigned | V5: Editor
C6: Kivinen, Tero | E6: 43 | F6: No | G6: Wi-SUN Alliance | H6: Editorial | I6: 3 | J6: Frontmatter | K6: 23 | L6: Update copyright year. | N6: Change 2024 to 2025. | O6: No | T6: Assigned | V6: Editor
C7: Kivinen, Tero | E7: 44 | F7: No | G7: Wi-SUN Alliance | H7: Editorial | I7: 8 | J7: Frontmatter | K7: 4 | L7: Add Vice-chairs, and other WG officials. | N7: Add Vice chairs (Phil Beecher, Ann Krieger), Working Group Technical Editor (Tero Kivinen), Secretary (Joerg Robert). | O7: No | T7: Assigned | V7: Editor
C8: Kivinen, Tero | E8: 45 | F8: No | G8: Wi-SUN Alliance | H8: Editorial | I8: 8 | J8: Frontmatter | K8: 5 | L8: Add task group officials. | N8: Add TG chair, vice-chair, secretary, technical editor. | O8: No | T8: Assigned | V8: Editor
C9: VERSO, BILLY | E9: 315 | F9: No | G9: Qorvo | H9: Editorial | I9: 9 | J9: Introduction | K9: 25 | L9: Blank numbered line | N9: delete it | O9: No | T9: Assigned | V9: Editor
C10: Kivinen, Tero | E10: 46 | F10: No | G10: Wi-SUN Alliance | H10: Technical | I10: 13 | J10: 2 | K10: 14 | L10: I do not think we need IETF RFC 1951 DEFLATE as normative reference. | N10: Move this to bibliography. | O10: No | P10: Rejected | Q10: Doc 15-25-0175-04-04ab-lb213-easy-comments-lhf.docx | T10: N/A
C11: Kivinen, Tero | E11: 47 | F11: No | G11: Wi-SUN Alliance | H11: Editorial | I11: 14 | J11: 3.2 | K11: 10 | L11: The CSPRNG acronym is not used in the draft. | N11: Remove CSPRNG from acronym list. | O11: No | T11: Assigned | V11: Editor
C12: MAMAN, MICKAEL | E12: 145 | F12: Yes | G12: STMicroelectronics | H12: Editorial | I12: 14 | J12: 3.2 | K12: 14 | L12: HRP-SDEV is high-rate pulse repetition frequency UWB PHY based sensing device | N12: remove the second "UWB" | O12: Yes | T12: Assigned | V12: Editor
C13: Kivinen, Tero | E13: 48 | F13: No | G13: Wi-SUN Alliance | H13: Editorial | I13: 14 | J13: 3.2 | K13: 19 | L13: We are avoiding NHL because of trademarks or similar, are there possibility that we end up similar problems with NBA? | N13: Consider using some other acronym. | O13: No | T13: Assigned | V13: Editor
C14: Kivinen, Tero | E14: 49 | F14: No | G14: Wi-SUN Alliance | H14: Editorial | I14: 14 | J14: 3.2 | K14: 20 | L14: OWR is already defined in the base standard, remove from here. | N14: Remove OWR from the list. | O14: No | T14: Assigned | V14: Editor
C15: VERSO, BILLY | E15: 316 | F15: No | G15: Qorvo | H15: Editorial | I15: 15 | J15: 3.2 | K15: 1 | L15: the "sensing" in the definition should be "UWB sensing" | N15: change "sensing" to "UWB sensing" | O15: No | T15: Assigned | V15: Editor
C16: VERSO, BILLY | E16: 317 | F16: No | G16: Qorvo | H16: General | I16: 15 | J16: 5.2.5 | K16: 9 | L16: Is RSS a special application space on its own? I think not, it is more a subset of ranging/RTLS. If we had someone to draft it, I can think of some broader special application spaces that might be worth adding here, (e.g., real time location, access control, sensing). In the absence of that I propose to delete all of 5.2.5. | N16: Delete all of 5.2.5 | O16: Yes | T16: Suggested Assignment | U16: Ben? or seek volunteers to do
C17: VERSO, BILLY | E17: 318 | F17: No | G17: Qorvo | H17: Editorial | I17: 15 | J17: 5.2.5 | K17: 11 | L17: The word "mobile" would be a better choice here vs "portable" since we may be locating thing not being carried. | N17: Change "portable" to "mobile" | O17: No | T17: Assigned | V17: Editor
C18: VERSO, BILLY | E18: 319 | F18: No | G18: Qorvo | H18: Technical | I18: 15 | J18: 5.2.5 | K18: 13 | L18: "Time structures for communication are defined by the upper layer using the UWB ranging service." is not clear in meaning anything. | N18: Delete the sentence. | O18: Yes | T18: Suggested Assignment | U18: Ben? or seek volunteers to do
C19: Kivinen, Tero | E19: 50 | F19: No | G19: Wi-SUN Alliance | H19: Editorial | I19: 16 | J19: 6.6.1 | K19: 5 | L19: This is first use of RPA, expand here. | N19: Expand RPA here. | O19: No | T19: Assigned | V19: Editor
C20: Kivinen, Tero | E20: 51 | F20: No | G20: Wi-SUN Alliance | H20: Technical | I20: 16 | J20: 6.6.1 | K20: 5 | L20: The text included is not enough to cover the transmission of the compact frames. For example when source addresses are not present the sender is assumed to be coordinator, and when the destination address is not present then destination shall be either coordinator or broadcast. | N20: Remove changes from section 6.6.1, move the more complete text of how to transmit compact frames in the 10.xx. | O20: Yes | T20: Assigned | V20: Alex
C21: Kivinen, Tero | E21: 52 | F21: No | G21: Wi-SUN Alliance | H21: Technical | I21: 16 | J21: 6.6.2 | K21: 9 | L21: The text included is not enough to cover the recipient filters of the compact frames. For example there is no frame version number that can be checked, and as the destination address is not present the step 3 might trigger depending on the macImplictBroadcast value. | N21: Remove changes from section 6.6.2, move the more complete text of how to receive compact frames in the 10.xx. | O21: Yes | T21: Assigned | V21: Alex
C22: VERSO, BILLY | E22: 320 | F22: No | G22: Qorvo | H22: Technical | I22: 16 | J22: 6.6.2 | K22: 9 | L22: "The RPA is marked as resolved", is not clear, I think it should refer to the place where the RPA resolution process is described, with reference to IRK etc. | N22: Change to "… the RPA fields are resolved according to the process described in 10.39.11.1.2.1" (which is the private addresses clause, which itself should be reviewed to see if it specifies the RPA resolution process sufficiently well, unambiguously, etc.). | O22: Yes | T22: Assigned | V22: Alex
C23: PANPAN, LI | E23: 254 | F23: Non-Voter | G23: Huawei | H23: Technical | I23: 16 | J23: 6.6.3.4 | K23: 18 | L23: This paragraph mentioned three times about the AIFS value being xxx, but we see both "is" and "shall be" and "equal to". Should keep consistent, say "The value of AIFS shall be xxx" or "The value of AIFS is equal to xxx" or something suitable. | N23: As in comment | O23: Yes | T23: Assigned | V23: Ben
C24: PANPAN, LI | E24: 255 | F24: Non-Voter | G24: Huawei | H24: Technical | I24: 16 | J24: 6.6.3.4 | K24: 18 | L24: Too long sentence. | N24: Separate with period before "otherwise". | O24: Yes | T24: Assigned | V24: Ben
C25: Kivinen, Tero | E25: 53 | F25: No | G25: Wi-SUN Alliance | H25: Technical | I25: 16 | J25: 6.6.3.4 | K25: 25 | L25: This text does not belong here, move it to 10.45.2 where the SSBD algorithm is described. Techincal | N25: Move text to 10.45.2 as it does not belong here. The text in 10.45.2 can say that isRetrnamissionAttempt shall be set to TRUE if packet is retransmission as descibed in 6.6.3.4 and macSsbdPersistence is enabled. | O25: Yes | T25: Assigned | V25: Larry
C26: PANPAN, LI | E26: 256 | F26: Non-Voter | G26: Huawei | H26: Technical | I26: 16 | J26: 6.6.3.4 | K26: 25 | L26: Three "when"s seem redundant | N26: Change it to "When the SSBD channel access method, described in 10.45, is used, macSsbdPersistence is enabled, and the packet is a retrasmission, ….." | O26: Yes | T26: Assigned | U26: I think make Tech and assign to Larry, so I don't mess it up. I think, it could be a simpler set isRetransmissionAttempt TRUE for all retransmisssions (false otherwise). | V26: Larry
C27: VERSO, BILLY | E27: 321 | F27: No | G27: Qorvo | H27: Technical | I27: 16 | J27: 6.6.3.4 | K27: 25 | L27: The paragraph is a single sentence which reads poorly. Maybe it would be enough to have the simpler sentence, as per the proposed change. | N27: Replace the paragraph with: "When the packet is a retransmission, isRetransmissionAttempt shall be set to TRUE when invoking SSBD. | O27: Yes | T27: Assigned | V27: Larry
C28: VERSO, BILLY | E28: 633 | F28: No | G28: Qorvo | H28: Technical | I28: 20 | J28: 8.2.7.3 | K28: 6.5 | L28: For non-interleaved MMS ranging, the MLME-RX-ENABLE.request needs to include the start time in ranging counter units and the clock offset information to enable the blind RX of the fragments that are invisible until | N28: Update the MLME-RX-ENABLE.request primitive accordingly. | O28: Yes | T28: Assigned | U28: I will do / make proposed resolution submission for group to consider | V28: Billy
C29: Kivinen, Tero | E29: 54 | F29: No | G29: Wi-SUN Alliance | H29: Editorial | I29: 21 | J29: 8.3.2.2 | K29: 6 | L29: This is first use of MMS outside tables, expand it here. | N29: Expand MMS here. | O29: No | T29: Assigned | V29: Editor
C30: Kivinen, Tero | E30: 55 | F30: No | G30: Wi-SUN Alliance | H30: Editorial | I30: 21 | J30: 8.3.2.2 | K30: 6 | L30: This is first use of NBA, expand it here. | N30: Expand NBA here. | O30: No | T30: Assigned | V30: Editor
C31: VERSO, BILLY | E31: 322 | F31: No | G31: Qorvo | H31: Technical | I31: 21 | J31: 8.3.2.2 | K31: 6 | L31: I think the TxTimeSpecified parameter should also be RCTU_TIME in the UWB driven case. If we delete the "NBA" from the sentence the "MMS UWB" can cover both cases.. | N31: Delete the "NBA" from the sentence. | O31: Yes | T31: Assigned | V31: Billy
C32: Kivinen, Tero | E32: 56 | F32: No | G32: Wi-SUN Alliance | H32: Technical | I32: 21 | J32: 8.3.2.3 | K32: 9 | L32: Listing Rx/Tx Start/End markers for all eight Rifs is quite repetitive. | N32: Change them to be array of unsigned integers. This is conceptual interface, so having Type of "Array of eight Unsigned Integers" is fine (similar than what is used for RangingStsFom). | O32: No | T32: Suggested Assignment | U32: Billy
C33: MAMAN, MICKAEL | E33: 146 | F33: Yes | G33: STMicroelectronics | H33: Editorial | I33: 21 | J33: 8.3.2.3 | K33: 9 | L33: typo : received instead of reveived | N33: change 16 time for RxRif1-8MarkerStart and RxRif1-8MarkerEnd | O33: Yes | T33: Assigned | V33: Editor
C34: MAMAN, MICKAEL | E34: 147 | F34: Yes | G34: STMicroelectronics | H34: Technical | I34: 21 | J34: 8.3.2.3 | K34: 9 | L34: simplify the table of RangingReportDescriptor with 4 tables of size 8 | N34: merge RxRif1-8MarkerStart into RxRifMarkerStart[8], RxRif1-8MarkerEnd into RxRifMarkerEnd[8], TxRif1-8MarkerStart into TxRifMarkerStart[8], TxRif1-8MarkerEnd into TxRifMarkerEnd[8] | O34: Yes
C35: PAKROOH, POORIA | E35: 227 | F35: No | G35: Qualcomm | H35: Technical | I35: 21 | J35: 8.3.2.3 | K35: 9 | L35: What is the reference for the RifMarker startand end time? | N35: In Table 8-28, specify the reference for the RifMarker startand end time | O35: Yes | T35: Suggested Assignment | U35: Xiliang
C36: ZAKAIB, LARRY | E36: 661 | F36: Yes | G36: Spark Microsystems | H36: Editorial | I36: 21 | J36: 8.3.2.3 | K36: 9 | L36: Correct the typo "reveived" with "received" in all occuraances in Table 8-28 | N36: Change "reveived" to "received" everywhere in Table 8-28 | O36: Yes | T36: Assigned | V36: Editor
C37: MAMAN, MICKAEL | E37: 148 | F37: Yes | G37: STMicroelectronics | H37: Technical | I37: 24 | J37: 8.3.3 | K37: 4 | L37: In DataRate element of the TXOptions, the range is between 0-7 in IEEE802.15.4 whereas for OQPSK PHYs the range is between 1-8 In table 67 | N37: change the valid range of DataRate element to 0-8 | O37: Yes | T37: Assigned | V37: Alex
C38: PAKROOH, POORIA | E38: 228 | F38: No | G38: Qualcomm | H38: Technical | I38: 25 | J38: 8.3.3 | K38: 1 | L38: Why is "SensREceive" needed? It is not used anywhere else in the draft. Monostatic involves single device. We are not defining any other parameters for monostatic | N38: Remove "SensReceive" from Table 8-29. | O38: Yes
C39: KREBS, ALEX | E39: 107 | F39: Yes | G39: Apple | H39: Editorial | I39: 25 | J39: MCPS-DATA.request | K39: 10-25 | L39: HeaderIeList and other paramters are ambigious in the font chosen between I as in Information and l as in lowercase. | N39: Change font for this and possibly more primitives (including p.39 l.17, p.40 l.15) such that I and l are rendered differently | O39: No | T39: Assigned | V39: Editor
C40: Kivinen, Tero | E40: 57 | F40: No | G40: Wi-SUN Alliance | H40: Editorial | I40: 26 | J40: 8.3.4 | K40: 11 | L40: This is first use of IRK, expand it here. | N40: Expand IRK here. | O40: No | P40: Accepted | T40: DONE
C41: Kivinen, Tero | E41: 60 | F41: No | G41: Wi-SUN Alliance | H41: Technical | I41: 26 | J41: 8.3.4 | K41: 11 | L41: Does both SrcAddrMode and DstAddrMode need to be NONE, or COMPACT? | N41: Add text explaining whether it is valid to have SrcAddrMode of NONE, and DstAddrMode of COMPACT. Specify whether it is needed that both SrcAddrMode and DstAddrMode to be COMPACT for SourceIrk and DstAddr contain the IRK. | O41: No | T41: Assigned | V41: Alex
C42: VERSO, BILLY | E42: 323 | F42: No | G42: Qorvo | H42: Technical | I42: 26 | J42: 8.3.4 | K42: 11 | L42: This is covering the RPA prand/hash/IRK compact frame addressing, but has omitted a mechansim/discussion of specifying addrees for those compact frames using public addresses | N42: Add method for specifying compact frame public addressing. | O42: Yes | T42: Assigned | V42: Alex
C43: Kivinen, Tero | E43: 59 | F43: No | G43: Wi-SUN Alliance | H43: Editorial | I43: 26 | J43: 8.3.4 | K43: 12 | L43: The CompatFrameId should be underlined also. | N43: Underline CompactFrameID as it is part of new text. | O43: No | T43: Assigned | V43: Editor
C44: VERSO, BILLY | E44: 324 | F44: No | G44: Qorvo | H44: Editorial | I44: 26 | J44: 8.3.4 | K44: 12 | L44: CompactFrameID is not underlined but it is added text. | N44: Make CompactFrameID underlined. | O44: No | T44: Assigned | V44: Editor
C45: Kivinen, Tero | E45: 58 | F45: No | G45: Wi-SUN Alliance | H45: Editorial | I45: 26 | J45: 8.3.4 | K45: 16 | L45: This is not first use of MMS, do not expand it here. | N45: Remove expansion of MMS. | O45: No | T45: Assigned | V45: Editor
C46: VERSO, BILLY | E46: 325 | F46: No | G46: Qorvo | H46: Editorial | I46: 26 | J46: 8.3.4 | K46: 16 | L46: "UWB multi-millisecond (MMS)" should be "multi-millisecond (MMS) UWB" as uses elsewhere. | N46: Change to "multi-millisecond (MMS) UWB" | O46: No | T46: Assigned | V46: Editor
C47: Kivinen, Tero | E47: 61 | F47: No | G47: Wi-SUN Alliance | H47: Editorial | I47: 27 | J47: 8.3.4 | K47: 3 | L47: CompactSecurityParams range field refers to Table 8-XX. | N47: Refer to table 2. | O47: No | T47: Assigned | V47: Editor
C48: Kivinen, Tero | E48: 62 | F48: No | G48: Wi-SUN Alliance | H48: Technical | I48: 27 | J48: 8.3.4 | K48: 3 | L48: The SourceIrk field valid range is "128-bit identity". That does not really specify valid range, on the other hand there is no real valid range for it. | N48: Replace the Valid range for SourceIrk with "-". | O48: No | T48: Assigned | V48: Alex
C49: MAMAN, MICKAEL | E49: 149 | F49: Yes | G49: STMicroelectronics | H49: Editorial | I49: 27 | J49: 8.3.4 | K49: 3 | L49: wrong reference to Table 8-XX | N49: change Table 8-XX to Table 2 | O49: Yes | T49: Assigned | V49: Editor
C50: VERSO, BILLY | E50: 326 | F50: No | G50: Qorvo | H50: Editorial | I50: 27 | J50: 8.3.4 | K50: 4 | L50: Second last row of Table 1, CompactSecurityParams, valid range says "As defined in Table 8-XX" but it should be Table 2. | N50: Change "Table 8-XX" to "Table 2" | O50: No | T50: Assigned | V50: Editor
C51: VERSO, BILLY | E51: 327 | F51: No | G51: Qorvo | H51: Editorial | I51: 27 | J51: 8.3.4 | K51: 4 | L51: Second last row of Table 1, CompactSecurityParams, has no description text. | N51: add "A structure specifying Compact frame security parameters" | O51: No | T51: Assigned | V51: Editor
C52: PAKROOH, POORIA | E52: 229 | F52: No | G52: Qualcomm | H52: Technical | I52: 27 | J52: 8.3.4 | K52: 7 | L52: What are the possible values for "CompactMessageVersion"? | N52: Specify the possible values for "CompactMessageVersion". | O52: Yes | T52: Assigned | V52: Alex
C53: VERSO, BILLY | E53: 328 | F53: No | G53: Qorvo | H53: Technical | I53: 27 | J53: 8.3.4 | K53: 9 | L53: This note does not make sense. The CompactMessageContent is a set of octets which by definition has no structure/subfields etc. The text here should say what the MAC needs to do with CompactMessageContent, it is insufficient specification of the MAC functionality to say it may have content that may need processing. "See 10.39.11 for details." is insufficient to cover what is required here since CompactMessageContent parameter and its handling are not mentioned/specified in that clause, either. | N53: Change the language to specify exactly what the MAC is to do with the set of octets supplied in this primitive's CompactMessageContent parameter. If it simply just sends them then let's say that, otherwise we should be more spefific about what we expect the MAC to with this string of octets. Perhaps a more structured input and description should be added. The SMC TLV field (defined later) suggests that the support of particular messages is someting decided/done above the MAC. | O53: Yes | T53: Assigned | V53: Alex
C54: Kivinen, Tero | E54: 63 | F54: No | G54: Wi-SUN Alliance | H54: Editorial | I54: 27 | J54: 8.3.4 | K54: 11 | L54: Do not use "See xxx". | N54: Replace with "as specified in 10.39.11" or similar as recommended by WG style manual. | O54: No | T54: Assigned | V54: Editor
C55: Kivinen, Tero | E55: 64 | F55: No | G55: Wi-SUN Alliance | H55: Technical | I55: 27 | J55: 8.3.4 | K55: 12 | L55: This table duplicate most of the fields of the Table 8-2 SecurityParameterDescriptor, which is already part of the MCPS-DATA.request. | N55: Remove this table, and use security parameters of the standard SecurityParams parameter. | O55: Yes | T55: Assigned | V55: Billy
C56: Rolfe, Benjamin | E56: 284 | F56: Yes | G56: BCA | H56: Technical | I56: 27 | J56: 8.3.4 | L56: Notes are informative, and shall not contain reqiurements. In this case "may" is misused, to state a posibility rather than an optional requirement. Sigh. | N56: Change "Note that the CompactMessageContent may contain different subfields that may require different handling" to "Note that the CompactMessageContent might contain different subfields that require different handling | T56: Assigned | V56: Alex
C57: Kivinen, Tero | E57: 65 | F57: No | G57: Wi-SUN Alliance | H57: Technical | I57: 28 | J57: 8.3.4 | K57: 1 | L57: The KeySource seems to be described incorrectly. KeySource is normally not the originator of the received frame or to be used transmitting the frame. It is used to find the associated key from the security tables, and it is included in the auxiliary security header, but does not necessarely match the originator of the frame. | N57: If this is trying to be the originator of the frame then use some different name than KeySource. Remove the whole table 2, and CompactSecurityParams, and use standard SecurityParams, which already have SecurityLevel, KeyIndex, and KeySource fields. | O57: Yes
C58: MAMAN, MICKAEL | E58: 150 | F58: Yes | G58: STMicroelectronics | H58: Technical | I58: 28 | J58: 8.3.4 | K58: 1 | L58: SecurityLevel 0x00 with no security is missing | N58: change valid range of SecurityLevel to 0x00-0x07 | O58: Yes
C59: VERSO, BILLY | E59: 329 | F59: No | G59: Qorvo | H59: Editorial | I59: 28 | J59: 8.3.4 | K59: 1 | L59: Given that SecurityLevel, KeyIndex, KeySource are already present in SecurityParams structure in base standard. It would be more unified approach to reused these for compact frame security. | N59: Integrate the descriptions for compact frame security into the base standard SecurityParams and delete the separate CompactSecurityParams parameter. | O59: No | T59: Assigned | V59: Editor
C60: Kivinen, Tero | E60: 66 | F60: No | G60: Wi-SUN Alliance | H60: Technical | I60: 28 | J60: 8.3.4 | K60: 2 | L60: The KeyIndex has valid range of 0x00-0x07, but I think the Key ID of the Secured Compact Frame is four bit field, thus correct range is 0-15. | N60: Change range to 0x00-0x0f. | O60: Yes
C61: VERSO, BILLY | E61: 330 | F61: No | G61: Qorvo | H61: Editorial | I61: 28 | J61: 8.3.5 | K61: 11 | L61: "This is then the reference time ..." could be clearer. | N61: Change to "The TxRangingCounter value is then the reference time …" | O61: No | T61: Assigned | V61: Editor
C62: MAMAN, MICKAEL | E62: 151 | F62: Yes | G62: STMicroelectronics | H62: Technical | I62: 30 | J62: 8.3.6 | K62: 1 | L62: Missing Frametype parameter in order to validate or not the compactFrameDescriptor in the MCPS-DATA.indication | N62: add a line in Table 8-32 FrameType | Enumeration | DATA_FRAME, MULTIPURPOSE_FRAME, COMPACT_FRAME | Specifies the frame type received | O62: Yes | T62: Assigned | V62: Billy
C63: Kivinen, Tero | E63: 67 | F63: No | G63: Wi-SUN Alliance | H63: Technical | I63: 30 | J63: 8.3.6 | K63: 11 | L63: How does one know whether the SrcAddr or DstAdddr parameter is used? | N63: Add reference to the table or location that enumerates which CompactFrameIDs use SrcAddr and whch use DstAddr. | O63: No | T63: Assigned | V63: Alex
C64: VERSO, BILLY | E64: 331 | F64: No | G64: Qorvo | H64: Technical | I64: 30 | J64: 8.3.6 | K64: 12 | L64: "either the SrcAddr or DstAddr parameters contain the IRK" is a little vague. I expect witch is used will be based on which of SrcAddrMode or DstAddrMode parameter values is COMPACT. If that is the case then for clarity we should state that. | N64: Change to say "… then depending on the CompactFrameID conveyed in the CompactFrameDescriptor, and which of SrcAddrMode or DstAddrMode values is COMPACT, either the SrcAddr or DstAddr parameters contain the IRK ..." | O64: Yes | T64: Assigned | V64: Alex
C65: Kivinen, Tero | E65: 68 | F65: No | G65: Wi-SUN Alliance | H65: Technical | I65: 30 | J65: 8.3.6. | K65: 13 | L65: SrcAddr and DstAddr cannot contain 128-bit IRK, so how is that stored there. | N65: I think the IRK would be contained in the SourceIrk of the CompcatFrameDescriptor. If so specify so. | O65: No | T65: Assigned | V65: Alex
C66: KREBS, ALEX | E66: 108 | F66: Yes | G66: Apple | H66: Technical | I66: 30 | J66: 8.3.6. | K66: 13 | L66: SrcAddr has been renamed to SourceIRK in CompactFrameDescriptor | N66: Change SrcAddr to SourceIRK (as done on p.26) | O66: Yes | T66: Suggested Assignment | U66: Billy
C67: KREBS, ALEX | E67: 109 | F67: Yes | G67: Apple | H67: Technical | I67: 30 | J67: 8.3.6. | K67: 19 | L67: 64 us is too aggressive for mandatory support. | N67: Change Range column to include 128, and change description to "value of 128 us is mandatory" and "values of 16 us, 32 us and 64 us is optional." and change Default column to 128. | O67: Yes | T67: Assigned | V67: Pooria
C68: Kivinen, Tero | E68: 69 | F68: No | G68: Wi-SUN Alliance | H68: Technical | I68: 31 | J68: 9.2.1 | K68: 8 | L68: Instead of making special case for securing compact frames it would be better to use standard security processing to protect those frames. | N68: Remove all changes to section 9, and replace the compact frames with alternate format described in the document 15-25-0173, | O68: Yes | T68: Assigned | V68: Rojan
C69: VERSO, BILLY | E69: 332 | F69: No | G69: Qorvo | H69: Technical | I69: 31 | J69: 9.2.1 | K69: 8 | L69: Why cannot "macSecurityEnabled" apply to compact frames also? On TX side we have SendFrameType to identify the frame type and on the receive side we have the Compact Frame type and Compact Frame ID of Secured to identify the secured frame. | N69: Remove/don’t amend the first paragraph of 9.2.1, and replace secCompactFrameSecurityEnabled with macSecurityEnabled where it is used | O69: Yes | T69: Assigned | V69: Rojan
C70: VERSO, BILLY | E70: 333 | F70: No | G70: Qorvo | H70: Technical | I70: 31 | J70: 9.2.1 | K70: 9 | L70: Reading the pre-existing part of this paragraph coming from the base standard, there is a notion of a device that does not implement security…. Do we want 4ab devices without security? If not we should state that the EMDEV shall support security. | N70: Add statement somewhere that the HRP-EMDEV shall support securing of MAC frames, including compact frames as used for MMS UWB control and reporting . | O70: No | T70: Assigned | V70: Rojan
C71: VERSO, BILLY | E71: 334 | F71: No | G71: Qorvo | H71: Technical | I71: 31 | J71: 9.2.1 | K71: 10 | L71: Since we have a Compact Frame ID for the Secured frame (it's #17 in Table 10), is the CompactFrameID parameter in the MCPS-DATA.request set to 17 or to the ID of the unsecured frame type ID (#0 to 16, and 30?)… We need to think about and specify how Compact frames that are secured are presented to the MAC in MCPS-DATA.request and delivered in MCPS-DATA.indication. | N71: Add description in in MCPS-DATA.request and in MCPS-DATA.indication, and in clause 9 as to make this interface specification clear | O71: Yes | T71: Assigned | V71: Rojan
C72: Kivinen, Tero | E72: 70 | F72: No | G72: Wi-SUN Alliance | H72: Technical | I72: 31 | J72: 9.2.12 | K72: 27 | L72: What shall the device do if someone tries to secure those frames in table 24? | N72: Add text saying that this procedure shall return error if the compact frame given in input is of one in table 24. | O72: Yes | T72: Assigned | V72: Rojan
C73: VERSO, BILLY | E73: 335 | F73: No | G73: Qorvo | H73: Technical | I73: 31 | J73: 9.2.12 | K73: 27 | L73: Is there something about the non-eligible frames that makes them unsuitable for securing, if not why disallow it, if there is a technical reason then please state it. (I think it is because the slot index is used to give a frame number). | N73: Allow securing for all compact frame types, or, add technical reason why the ineligible frames are ineligible | O73: Yes | T73: Assigned | V73: Rojan
C74: VERSO, BILLY | E74: 336 | F74: No | G74: Qorvo | H74: Technical | I74: 31 | J74: 9.2.12 | K74: 27 | L74: Might be worth considering adding some frame counter mechanism to allow securing of the ineligible frames, to avoid rogue elements using them for some type of attack. | N74: Add optional SEC frame counter field into the Secure frame to allow for securing of frames sent before the ranging slot structure is established. | O74: Yes | T74: Assigned | V74: Rojan
C75: PANPAN, LI | E75: 257 | F75: Non-Voter | G75: Huawei | H75: Editorial | I75: 31 | J75: 9.2.12 | K75: 28 | L75: Redundant "other" | N75: Remove "other" | O75: Yes | T75: Assigned | V75: Editor
C76: PANPAN, LI | E76: 258 | F76: Non-Voter | G76: Huawei | H76: Technical | I76: 32 | J76: 9.2.12 | K76: 1 | L76: This sentence is general description of the inputs to secure procedure, so no need to give the exact terminology. Why not change "SecurityLevel, KeySource, KeyIndex" into "security level, key source, key index"? Also change in the following three bullets. | N76: As in comment | O76: Yes | T76: Assigned | V76: Rojan
C77: PANPAN, LI | E77: 259 | F77: Non-Voter | G77: Huawei | H77: Editorial | I77: 32 | J77: 9.2.12 | K77: 9 | L77: "the secured frame" should be changed to "the frame is secured". | N77: As in comment | O77: Yes | P77: Rejected | Q77: "the outpits are the status and …. the secured frame" is correct. | T77: N/A
C78: Kivinen, Tero | E78: 71 | F78: No | G78: Wi-SUN Alliance | H78: Technical | I78: 32 | J78: 9.2.12 | K78: 22 | L78: As there are compact frames that allows setting fields used as a frame counter how does the system make sure it never reuses any of the frame counters? | N78: Instead of using block/round/slot indexes to generate frame counter use the same frame counter that is already used by the normal frames. | O78: Yes | T78: Assigned | V78: Rojan
C79: Kivinen, Tero | E79: 72 | F79: No | G79: Wi-SUN Alliance | H79: Technical | I79: 32 | J79: 9.2.12 | K79: 31 | L79: What about the Message ID field? It is not included at all, meaning anybody can see it and change it at will. | N79: Include Message ID in the Private Payload Fields. | O79: Yes | T79: Assigned | V79: Rojan
C80: Kivinen, Tero | E80: 73 | F80: No | G80: Wi-SUN Alliance | H80: Technical | I80: 32 | J80: 9.2.12 | K80: 32 | L80: This step does not do the validations done in the step f) in 9.2.3 i.e., that the secAeadAlgorithm is supported and that the length of the key matches what is required by the algorithm. It also does not give the secAeadAlgoithm from the secCompactFrameKeyDescriptor to the encryption process. | N80: Add the missing validations and give the secAeadAlgorithm support. | O80: Yes | T80: Assigned | V80: Rojan
C81: VERSO, BILLY | E81: 337 | F81: No | G81: Qorvo | H81: Technical | I81: 32 | J81: 9.2.13 | K81: 37 | L81: There is only one compact frame type eligible for desecuring and that is the Secured Compact frame, with Compact Frame ID value of 17. | N81: Change the paragraph to say only the Secured Compact frame, with Compact Frame ID value of 17, is eligible for desecuring. | O81: Yes | T81: Assigned | V81: Rojan
C82: Kivinen, Tero | E82: 74 | F82: No | G82: Wi-SUN Alliance | H82: Technical | I82: 32 | J82: 9.2.13 | K82: 38 | L82: The device has know of knowing what the actual compact frame type inside the secured compact frame is before it has processed the security control field. | N82: Remove sentence starting at line 38. | O82: Yes | T82: Assigned | V82: Rojan
C83: LI, HuanBang | E83: 123 | F83: Yes | G83: NICT | H83: General | I83: 33 | J83: 9.2.13 | K83: 1 | L83: The intention of this sentence is to tell that the procedures in 9.2.4 or 9.2.5 shall be used for those frame types listed in Table 24. However, 'the sentence doesn't clearly show the point. | N83: modify the sentence to clearly describe the intention. | O83: Yes | T83: Assigned | U83: Rojan Volunteered email 8 April, Huan-Bang volunteered email 2 April (I think comment is not right) | V83: Rojan, Huan-Bang
C84: PANPAN, LI | E84: 260 | F84: Non-Voter | G84: Huawei | H84: Editorial | I84: 33 | J84: 9.2.13 | K84: 1 | L84: Redundant "other" | N84: Remove "other" | O84: Yes | T84: Assigned | V84: Editor
C85: VERSO, BILLY | E85: 338 | F85: No | G85: Qorvo | H85: Technical | I85: 33 | J85: 9.2.13 | K85: 3 | L85: Suggest to merge this into first paragraph of the subclause | N85: The input is the Secured Compact frame, with Compact Frame ID value of 17, to be desceured | O85: Yes | T85: Assigned | V85: Rojan
C86: PANPAN, LI | E86: 261 | F86: Non-Voter | G86: Huawei | H86: Editorial | I86: 33 | J86: 9.2.13 | K86: 4 | L86: "if the status is SUCCESS the unsecures Compact frame" should be changed to "if the status is SUCCESS, the Compact frame is unsecured". Also, here we see "status" while other places we see "Status". Figure out which one we should use and change all of them. | N86: As in comment | O86: Yes | T86: Assigned | V86: Editor
C87: VERSO, BILLY | E87: 339 | F87: No | G87: Qorvo | H87: Technical | I87: 33 | J87: 9.2.13 | K87: 9 | L87: Probably don't need separate variable for compact frame security, indeed maybe we should mandate that security support is required for EMDEV, i.e. perhaps step (a) is not needed beyond that we have received Compact Frame ID value of 17. | N87: Use macSecurityEnabled or always just process Compact Frame ID value of 17. | O87: Yes | T87: Assigned | V87: Rojan
C88: Kivinen, Tero | E88: 75 | F88: No | G88: Wi-SUN Alliance | H88: Technical | I88: 33 | J88: 9.2.13 | K88: 15 | L88: The term "frame eligible for security" is not exact. | N88: Specify that if secured compact frame id in the security control field is not listed in table 23, then procedure shall return error. | O88: Yes | T88: Assigned | V88: Rojan
C89: Kivinen, Tero | E89: 76 | F89: No | G89: Wi-SUN Alliance | H89: Technical | I89: 33 | J89: 9.2.13 | K89: 18 | L89: The process in the 10.39.11.1.2.3 might end up in the RPA which is marked resolved, but which do not have extended address associated to it. | N89: Add error case where the source address cannot be obtained because the macIrkDescriptorElement structure does not contain macIrkAssociatedEui. | O89: Yes | T89: Assigned | V89: Rojan
C90: Kivinen, Tero | E90: 77 | F90: No | G90: Wi-SUN Alliance | H90: Technical | I90: 33 | J90: 9.2.13 | K90: 24 | L90: How does this step know what values the ranging slot, ranging round and rounding block have? Are they in some pib attribute? | N90: Specify where the unsecuring process can find the information needed to calculate the nonce. | O90: Yes | T90: Assigned | V90: Rojan
C91: Kivinen, Tero | E91: 78 | F91: No | G91: Wi-SUN Alliance | H91: Technical | I91: 33 | J91: 9.2.13 | K91: 27 | L91: Again the Message ID is missing. | N91: Add Message ID to the Private Payload fields. | O91: Yes | T91: Assigned | V91: Rojan
C92: Kivinen, Tero | E92: 79 | F92: No | G92: Wi-SUN Alliance | H92: Technical | I92: 33 | J92: 9.2.13 | K92: 28 | L92: This does not take in to account the secAeadAlgorithm in the secCompactFrameKeyDescriptor. | N92: Add text for secAeadAlgorthm. | O92: Yes | T92: Assigned | V92: Rojan
C93: Kivinen, Tero | E93: 80 | F93: No | G93: Wi-SUN Alliance | H93: Technical | I93: 33 | J93: 9.2.13 | K93: 34 | L93: Why use separate CompactSecurityParams when there is already SecurityParameterDescriptor that has same fields. | N93: Remove CompactSecurityParams structure and use standard SecurityParameterDescriptor instead. | O93: Yes | T93: Assigned | V93: Rojan
C94: Kivinen, Tero | E94: 81 | F94: No | G94: Wi-SUN Alliance | H94: Technical | I94: 34 | J94: 9.3.2.4 | K94: 8 | L94: Using this construct will have same issues about the replay protection that TSCH has, i.e., if packet is retransmitted then there is no way to detect that retransmitted frame is same packet than before. | N94: Add similar text than what is done for TSCH in the 9.1 when using compact frames. | O94: Yes | T94: Assigned | V94: Rojan
C95: Kivinen, Tero | E95: 82 | F95: No | G95: Wi-SUN Alliance | H95: Technical | I95: 34 | J95: 9.3.2.4 | K95: 10 | L95: The order of Block Index, Round Index and Slot Index seems to assume little endian format, but section 9.3.1.3 specifies that all integers are sent in most-significant-octet-first order. | N95: Change the order to match the most-significant-octet-first order. | O95: Yes | T95: Assigned | V95: Rojan
C96: Kivinen, Tero | E96: 83 | F96: No | G96: Wi-SUN Alliance | H96: Technical | I96: 34 | J96: 9.3.2.4 | K96: 16 | L96: How is the recipient supposed to decrypt the secured one-to-one poll frame containing the block index and round index field if it does not know what block index and round index is used to encrypt the frame. | N96: There is no way of decrypting the frame unless the nonce is known by the recipient device, thus it can't decrypt the one-to-one compact frame to find indexes to calculate the frame counter to generated the AEAD nonce. Remove all changes to section 9, and replace the compact frames with alternate format described in the document 15-25-0173, which uses standard secured frames and is more efficient than compact frames for unsecured frames, and transmits the frame counter in the frames for secured frames thus does not have this problem. | O96: Yes | T96: Assigned | V96: Rojan
C97: LI, HuanBang | E97: 124 | F97: Yes | G97: NICT | H97: Editorial | I97: 36 | J97: 9.5.11 | K97: 6 | L97: In Table 3, the columns "description" of each row are ended differently with 'comma', 'period', or none. | N97: unifiy to 'period'. | O97: Yes | T97: Assigned | V97: Editor
C98: VERSO, BILLY | E98: 340 | F98: No | G98: Qorvo | H98: Technical | I98: 36 | J98: 9.5.11 | K98: 6 | L98: secCompactFrameKeyID has range 0-255 in Table 3, but KeyIndex field in Table 2 has range 0 to 7, while Key ID field within Secured Control field has a size of 4 bits which would cover a range of 0 to 15. I am not sure if these are all related, but I think at least some of them are, so field size and value ranges should be aligned. | N98: Check/align the key ID and key index field sizes and ranges as appropriate. | O98: Yes | T98: Assigned | V98: Rojan
C99: Kivinen, Tero | E99: 84 | F99: No | G99: Wi-SUN Alliance | H99: Editorial | I99: 36 | J99: 9.5.11 | K99: 7 | L99: This should be secCompactFrameKeyId not secCompactFrameKeyID. | N99: Fix last d to lowercase. | O99: No | T99: Assigned | V99: Editor
C100: Kivinen, Tero | E100: 85 | F100: No | G100: Wi-SUN Alliance | H100: Technical | I100: 36 | J100: 9.5.11 | K100: 7 | L100: Here the range is 0-255, but I think the frames only include four bits for this field. | N100: Change to 0-15. | O100: No | T100: Assigned | V100: Rojan
C101: Kivinen, Tero | E101: 86 | F101: No | G101: Wi-SUN Alliance | H101: Technical | I101: 36 | J101: 9.5.11 | K101: 7 | L101: Do not use the same name secAeadAlgorithm than what is already used in other tables. | N101: Change secAeadAlgorithm to secCompactAeadAlgorithm. | O101: Yes | T101: Assigned | V101: Rojan
C102: VERSO, BILLY | E102: 341 | F102: No | G102: Qorvo | H102: Editorial | I102: 37 | J102: 10.21.6.1.2 | K102: 5 | L102: Heading number unnecessary indented. | N102: Align all similar to left margin | O102: No | T102: Assigned | V102: Editor
C103: VERSO, BILLY | E103: 342 | F103: No | G103: Qorvo | H103: Technical | I103: 37 | J103: 10.21.6.1.2 | K103: 29 | L103: For the controlee/controller association, the MLME-ASSOCIATE.request needs to provide the address of the controller device. The CoordAddrMode, CoordPanId, and CoordAddress can be reused for this. But this reuse should be indicated in the text. | N103: Add Table 10-104 rows from base standard to show the necessary edits, i.e., to change "coordinator" to "coordinator/controller" in the descriptions of CoordAddrMode and CoordAddress parameters. | O103: Yes | P103: Revised | Q103: Doc 15-25-0175-04-04ab-lb213-easy-comments-lhf.docx | R103: ASSOC | T103: Ready
C104: VERSO, BILLY | E104: 343 | F104: No | G104: Qorvo | H104: Editorial | I104: 38 | J104: 10.21.6.1.2 | K104: 1 | L104: ControllerCapabilityInformation could be removed from MLME-ASSOCIATE.request parameters and instead reuse the CapabilityInformation field to have different meaning for controller association vs coordinator association, this would read better since the capability information being signalled in the association request is the controlee's capabilities not the controller's, so the field is misnamed | N104: Delete ControllerCapabilityInformation from Table 10-104 and re-use the CapabilityInformation field, to have different description for when ControllerAssociation is TRUE. | O104: No | T104: Assigned | V104: Editor
C105: VERSO, BILLY | E105: 344 | F105: No | G105: Qorvo | H105: Technical | I105: 38 | J105: 10.21.6.1.2 | K105: 1 | L105: ControllerCapabilityInformation for MLME-ASSOCIATE.request (in Table 10-104) says it is a bitmap as defined in 10.41.4.1, which I think would be clearer if it was actually referring to the bitmap format figure it was meaning. I think it should be a bitmap containing the field in Figure 187. The clause reference on its own does not suffice. | N105: Refer to Figure 187 directly, and add to its description that as well as being a field in the over the air message that is it also the format of the capability information bitmap parameter of the MLME-ASSOCIATE.request | O105: Yes | R105: ASSOC | T105: Assigned | V105: Larry
C106: VERSO, BILLY | E106: 345 | F106: No | G106: Qorvo | H106: Technical | I106: 38 | J106: 10.21.6.1.2 | K106: 1 | L106: I think we need a SessionID parameter to provide the value to place in the Session ID field of the Controller Association Request command frame | N106: Add a SessionID parameter into Table 10-104 | O106: Yes | R106: ASSOC | T106: Assigned | V106: Larry
C107: VERSO, BILLY | E107: 346 | F107: No | G107: Qorvo | H107: Technical | I107: 39 | J107: 10.21.6.1.3 | K107: 1 | L107: ControllerCapabilityInformation for MLME-ASSOCIATE.indication (in Table 10-105) says it is a bitmap as defined in 10.41.4.1, which I think would be clearer if it was actually referring to the bitmap format figure it was meaning. I think it should be a bitmap containing the field in Figure 187. The clause reference on its own does not suffice. | N107: Refer to Figure 187 directly, and add to its description that as well as being a field in the over the air message that is it also the format of the capability information bitmap parameter of the MLME-ASSOCIATE.indication | O107: Yes | P107: Revised | Q107: Doc 15-25-0175-04-04ab-lb213-easy-comments-lhf.docx | R107: ASSOC | T107: Ready
C108: VERSO, BILLY | E108: 347 | F108: No | G108: Qorvo | H108: Editorial | I108: 39 | J108: 10.21.6.1.3 | K108: 1 | L108: ControllerCapabilityInformation could be removed from MLME-ASSOCIATE.indication parameters and instead reuse the CapabilityInformation field to have different meaning for controller association vs coordinator association, this would read better since the capability information being signalled in the association frame is the controlee's capabilities not the controller's, so the field is misnamed | N108: Delete ControllerCapabilityInformation from Table 10-105 and re-use the CapabilityInformation field, to have different description for when ControllerAssociation is TRUE. | O108: No | T108: Assigned | V108: Editor
C109: VERSO, BILLY | E109: 348 | F109: No | G109: Qorvo | H109: Technical | I109: 39 | J109: 10.21.6.1.3 | K109: 1 | L109: I think we need a SessionID parameter to provide the value from the Session ID field of the received Controller Association Request command frame | N109: Add a SessionID parameter into Table 10-105 | O109: Yes | R109: ASSOC | T109: Assigned | V109: Larry
C110: VERSO, BILLY | E110: 349 | F110: No | G110: Qorvo | H110: Technical | I110: 39 | J110: 10.21.6.1.3 | K110: 1 | L110: This is the first use of the word "session". In the base standard "session" only appears within the text of the ARC IE for Session ID and there where other than the field name it is a "ranging session", with a defintiion given as "A group of ERDEVs engaged in a continuous ranging procedure that is characterized by a specific initial set of parameters is called a ranging session.", the 4z MAC does not use the Session ID it is just conveyed in the IE. "Session" is clearly a higher layer protocl construct. In FiRa protocols (for instance) build upon 4z, it mostly talks about UWB session (a term now currently used a lot in 4ab), sometimes ranging session, sometimes TWR session, sometimes HUS session. Since the 4ab MAC is not really aware of sessions as such, I think we should try to avoid using of it except where needed to talk about Session ID. | N110: Since the 4ab MAC is not maintaining sessions (several of which might be being managed simultaneously by the upper layer protocols) we should consider whether we should be talking about them in 4ab. I would be in favour of a review of this and removing as much mention of Session as possible, unless it is really needed to be used as part of the MAC functional definition. Where we talk about Session then it should be in the context of higher layer protcol usage of the MAC and clearly not the 4ab MAC itself maintanining or running the session(s). | O110: Yes | T110: Assigned | U110: I will do / make proposed resolution submission for group to consider | V110: Billy
C111: VERSO, BILLY | E111: 350 | F111: No | G111: Qorvo | H111: Editorial | I111: 41 | J111: 10.21.6.1.5 | K111: 1 | L111: Blank numbered line, it is actually the line the table is on but it is running onto the next page. | N111: Fix it | O111: No | T111: Assigned | V111: Editor
C112: PANPAN, LI | E112: 262 | F112: Non-Voter | G112: Huawei | H112: Technical | I112: 41 | J112: 10.21.6.1.5 | K112: 5 | L112: I guess "TRUE" should be changed to "FALSE"? | N112: As in comment | O112: Yes | P112: Rejected | Q112: Doc 15-25-0178-00-04ab-d02-miscellaneous-comment-resolutions-i.docx | T112: N/A
C113: Kivinen, Tero | E113: 87 | F113: No | G113: Wi-SUN Alliance | H113: Editorial | I113: 42 | J113: 10.29.6.6 | K113: 12 | L113: This is first use of HRP-ARDEV, expand it here. | N113: Expand HRP-ARDEV here. | O113: No | T113: Assigned | V113: Editor
C114: PAKROOH, POORIA | E114: 230 | F114: No | G114: Qualcomm | H114: Technical | I114: 42 | J114: 10.29.6.6 | K114: 12 | L114: It seems that this chart only applies to non-iterleaved mode. | N114: Change line 12 to: "The non-interleaved MMS UWB ranging packets specified for the HRP-ARDEV in 16.2.11, can be used for DS-TWR with message sequence as per Figure 3." | O114: Yes | P114: Revised | Q114: Doc 15-25-0175-04-04ab-lb213-easy-comments-lhf.docx | T114: Ready
C115: VERSO, BILLY | E115: 351 | F115: No | G115: Qorvo | H115: Technical | I115: 42 | J115: 10.29.6.6 | K115: 14 | L115: Figure 3 MSC is very sparse, it is missing the Control phase messages that should precede each of the MMS UWB packets, (e.g.as shown in Figure 43), would be good to include the RX enables, and any other setup stages either in the figure but at least covered in some text describing the figure. The current text and description is so minimal that it is hardly worth having the figure. | N115: Delete the figure and text, or make it more useful by adding the missing steps for control phase packets etc and describing them in the text. | O115: Yes | T115: Assigned | V115: Riku
C116: TIAN, BIN | E116: 304 | F116: No | G116: Qualcomm | H116: Technical | I116: 44 | J116: 10.29.9.2.3 | K116: 1 | L116: In Table 5, the description for SoundingImphaseValue and SoundingQuadrature Value is " A relative measurement or the receive signal strenghth". The term "Receive signal strength" generally is refer to receive signal power, not the amplitude, and its value can not be negative. Use use the term Inphase value for an tap in CIR | N116: as in the comment | O116: Yes
C117: MAMAN, MICKAEL | E117: 152 | F117: Yes | G117: STMicroelectronics | H117: Editorial | I117: 44 | J117: 10.29.9.2.3 | K117: 5 | L117: typo on UNSUPPORTED_ATTRIBUITE | N117: change to UNSUPPORTED_ATTRIBUTE | O117: Yes | T117: Assigned | V117: Editor
C118: MAMAN, MICKAEL | E118: 153 | F118: Yes | G118: STMicroelectronics | H118: Editorial | I118: 44 | J118: 10.29.9.2.3 | K118: 6 | L118: typo on SoundingList. Now it is SoundingListSet | N118: change to SoundingListSet | O118: Yes | T118: Assigned | V118: Editor
C119: MAMAN, MICKAEL | E119: 154 | F119: Yes | G119: STMicroelectronics | H119: Editorial | I119: 44 | J119: 10.29.9.2.3 | K119: 8 | L119: typo on SoundingList in the title. Now it is SoundingListSet | N119: change to SoundingListSet | O119: Yes | T119: Assigned | V119: Editor
C120: MAMAN, MICKAEL | E120: 155 | F120: Yes | G120: STMicroelectronics | H120: Editorial | I120: 44 | J120: 10.29.9.2.3 | K120: 9 | L120: typo on SoundingList in the NOTE. Now it is SoundingListSet | N120: change to SoundingListSet | O120: Yes | T120: Assigned | V120: Editor
C121: MAMAN, MICKAEL | E121: 156 | F121: Yes | G121: STMicroelectronics | H121: Editorial | I121: 44 | J121: 10.29.9.2.3 | K121: 10 | L121: typo on SoundingList. Now it is SoundingListSet | N121: change to SoundingListSet | O121: Yes | T121: Assigned | V121: Editor
C122: MAMAN, MICKAEL | E122: 157 | F122: Yes | G122: STMicroelectronics | H122: Editorial | I122: 45 | J122: 10.29.9.2.3 | K122: 1 | L122: typo on SoundingList in the title. Now it is SoundingListSet | N122: change to SoundingListSet | O122: Yes | T122: Assigned | V122: Editor
C123: VERSO, BILLY | E123: 352 | F123: No | G123: Qorvo | H123: Technical | I123: 45 | J123: 10.32.1 | K123: 15 | L123: Use of "IEs such as" in the definition of the RCM makes it a vague definition open to misinterpretation. RCM previously had a very specific meaning. We should delete the 3 words to leave a clear specification of which IEs have to be present in order for the frame to be considered an RCM. | N123: Delete: "IEs such as ". | O123: Yes | Q123: Doc 15-25-0179-00-04ab-lb213-lhf-needing-confirmation-or-discussion.docx | T123: Assigned | V123: Mickael
C124: PANPAN, LI | E124: 263 | F124: Non-Voter | G124: Huawei | H124: Editorial | I124: 45 | J124: 10.32.1 | K124: 23 | L124: Add "fields" after "these" | N124: As in comment | O124: Yes | T124: Assigned | V124: Editor
C125: VERSO, BILLY | E125: 353 | F125: No | G125: Qorvo | H125: Technical | I125: 45 | J125: 10.32.1 | K125: 25 | L125: The statement here that is a little vague and really is not needed, since this handling is all the domain of the higher layer. | N125: Change the end of the paragraph starting from the sentence: "If a device receives RCMs with different contents, …" to: "The higher layer is responsible for processing, and acting on, the RCM content." | O125: Yes | T125: Assigned | V125: Mickael
C126: PANPAN, LI | E126: 264 | F126: Non-Voter | G126: Huawei | H126: Technical | I126: 46 | J126: 10.32.2 | K126: 3 | L126: Change "a whole number of ranging rounds" to "a number of whole ranging rounds" | N126: As in comment | O126: Yes | P126: Rejected | Q126: Doc 15-25-0178-00-04ab-d02-miscellaneous-comment-resolutions-i.docx | T126: N/A
C127: KREBS, ALEX | E127: 110 | F127: Yes | G127: Apple | H127: Editorial | I127: 46 | J127: Ranging block and round structure | K127: 13 | L127: e.g. and etc. are redundant. | N127: replace by "e.g., UWB sensing packet or data packets. | O127: No | T127: Assigned | V127: Editor
C128: Rolfe, Benjamin | E128: 285 | F128: Yes | G128: BCA | H128: Technical | I128: 46 | J128: 10.32.2 | K128: 15 | L128: " it may be advantageous" is an informative statement, not an optional requirement. This is stating a possiblity, not quite a recommendation. The correct word is "can". | N128: Chante "may" to "can" | P128: Accepted | Q128: Doc 15-25-0175-04-04ab-lb213-easy-comments-lhf.docx | T128: Ready
C129: Rolfe, Benjamin | E129: 286 | F129: Yes | G129: BCA | H129: Technical | I129: 46 | J129: 10.32.2 | K129: 18 | L129: " it may be advantageous" is an informative statement, not an optional requirement. This is stating a possiblity, not quite a recommendation. The correct word is "can". | N129: Chante "may" to "can" | P129: Accepted | Q129: Doc 15-25-0175-04-04ab-lb213-easy-comments-lhf.docx | T129: Ready
C130: VERSO, BILLY | E130: 354 | F130: No | G130: Qorvo | H130: Technical | I130: 46 | J130: 10.32.2 | K130: 28 | L130: Is there something in the RCM to indicate which slot it is being sent in, so that for example if a devices receives and RCM not sent in slot zero, after missing the initial RCM, that it knows where slot zero is to correctly synchronise to the ranging block/round etc. I don't see this in the ARC IE or AC IE, so I think that maybe this is broken as an idea. The ARC IE is part of the base standard so we probably cannot add a slot # field in it, but we can do so in the AC IE, in which case this text can say "RCM using AC IE" and state that the slot# field is present for this purpose. | N130: Add slot number field to the AC IE, and modify this text to say "RCM using AC IE", which "shall have the slot number field included if RCM are being sent in slots other than slot zero". | O130: Yes | T130: Assigned | V130: Mickael
C131: KREBS, ALEX | E131: 111 | F131: Yes | G131: Apple | H131: Editorial | I131: 47 | J131: Overview | K131: 4 | L131: comma missing | N131: change text to "mode, and" | O131: No | T131: Assigned | V131: Editor
C132: PANPAN, LI | E132: 265 | F132: Non-Voter | G132: Huawei | H132: Technical | I132: 47 | J132: 10.32.3.1 | K132: 6 | L132: Here only mention the difference between block-based and interval-based mode, with mentioning hyper block mode. Although intuitively hyper block mode should be same with block mode, but better clarify. | N132: As in comment | O132: Yes | T132: Assigned | V132: Panpan, Youngwan
C133: VERSO, BILLY | E133: 355 | F133: No | G133: Qorvo | H133: Editorial | I133: 47 | J133: 10.32.3.5 | K133: 16 | L133: Figure and 5 split onto two lines. | N133: Join figure to 5 with non breaking space. | O133: No | T133: Assigned | V133: Editor
C134: VERSO, BILLY | E134: 356 | F134: No | G134: Qorvo | H134: Editorial | I134: 48 | J134: 10.32.3.5 | K134: 29 | L134: Extra bracket at end of line. The "to one" could be after the "field value" rather than later in this sentence. | N134: Remove extra bracket. Move "to one" to be after "field value". | O134: No | T134: Assigned | V134: Editor
C135: VERSO, BILLY | E135: 357 | F135: No | G135: Qorvo | H135: Technical | I135: 48 | J135: 10.32.3.5 | K135: 42 | L135: The sentence here is hard to understand… and variables m and p have not been mentioned in previous paragraphs…. | N135: I don't know what is trying to say, but please re-phrase and expand the paragraph make it clear. | O135: Yes | T135: Assigned | V135: Youngwan
C136: LI, HuanBang | E136: 125 | F136: Yes | G136: NICT | H136: General | I136: 49 | J136: 10.32.3.5 | K136: 2 | L136: Figure 6' is not cited in the text. | N136: Citation of Figure 6 can be added at the end of Line 28 of Page 48 like 'as shown in Figure 6'. | O136: Yes | P136: Accepted | Q136: Doc 15-25-0175-04-04ab-lb213-easy-comments-lhf.docx | T136: Ready
C137: VERSO, BILLY | E137: 358 | F137: No | G137: Qorvo | H137: Technical | I137: 49 | J137: 10.32.3.5 | K137: 2 | L137: Figure 6 is not referenced in the text. | N137: Either add text to describe/explain what Figure 6 is showing or delete the figure | O137: Yes | T137: Assigned | V137: Youngwan
C138: VERSO, BILLY | E138: 359 | F138: No | G138: Qorvo | H138: Editorial | I138: 49 | J138: 10.32.3.5 | K138: 4 | L138: This is not the first time PAN has been used, and format of expansion is not matching the normal way to do it. | N138: Delete "(Personal Area Network)" | O138: No | T138: Assigned | V138: Editor
C139: VERSO, BILLY | E139: 360 | F139: No | G139: Qorvo | H139: Editorial | I139: 49 | J139: 10.32.3.5 | K139: 7 | L139: "Controller" | N139: change to "controller" and check for other cases | O139: No | T139: Assigned | V139: Editor
C140: VERSO, BILLY | E140: 361 | F140: No | G140: Qorvo | H140: Editorial | I140: 49 | J140: 10.32.3.5 | K140: 7 | L140: "scheduling IE" | N140: change to "Scheduling IE" and check for others cases | O140: No | T140: Assigned | V140: Editor
C141: VERSO, BILLY | E141: 362 | F141: No | G141: Qorvo | H141: Editorial | I141: 49 | J141: 10.32.3.5 | K141: 7 | L141: Repetition of "hyper block advertisement (HBA)" | N141: change to "HBA" | O141: No | T141: Assigned | V141: Editor
C142: VERSO, BILLY | E142: 363 | F142: No | G142: Qorvo | H142: Editorial | I142: 49 | J142: 10.32.3.5 | K142: 14 | L142: "Enhanced Ranging Round IE (ERR IE), described in 10.32.9.11," is expanded but this is not first time ERR IE has appeared in the text.. | N142: change to "ERR IE (10.32.9.11) | O142: No | T142: Assigned | V142: Editor
C143: VERSO, BILLY | E143: 364 | F143: No | G143: Qorvo | H143: Editorial | I143: 50 | J143: 10.32.3.5 | K143: 6 | L143: scheduling IE | N143: change to Scheduling IE | O143: No | T143: Assigned | V143: Editor
C144: VERSO, BILLY | E144: 365 | F144: No | G144: Qorvo | H144: Technical | I144: 50 | J144: 10.32.3.5 | K144: 7 | L144: I am not sure what this is "the address of the network" is, this term does not appear elsewhere in 4ab or the base standard. Is it the PAN, i.e., the PAN ID, or what? Please clarify, or delete. | N144: delete "or the address of the network it belongs to" | O144: Yes | T144: Suggested Assignment | U144: Youngwan (Hyper block mode)
C145: VERSO, BILLY | E145: 366 | F145: No | G145: Qorvo | H145: Editorial | I145: 50 | J145: 10.32.3.5 | K145: 13 | L145: "The very first round (round 0) of the Hyper Block 0 has five slots and the RCM with the HBS IE is sent in the very first slot (slot 0) of the round 0 of each Hyper Block." | N145: change to "The very first round, i.e., round zero, of hyper block zero has five slots and the RCM with the HBS IE is sent in the very first slot (slot zero) of round zero of each hyper block. | O145: No | T145: Assigned | V145: Editor
C146: VERSO, BILLY | E146: 367 | F146: No | G146: Qorvo | H146: Editorial | I146: 50 | J146: 10.32.3.5 | K146: 17 | L146: hyper Block. | N146: change to "hyper block." | O146: No | T146: Assigned | V146: Editor
C147: LI, HuanBang | E147: 126 | F147: Yes | G147: NICT | H147: Editorial | I147: 51 | J147: 10.32.3.5 | K147: 1 | L147: Use of 'The' at the beginning of the sentence: 'The Figure 9 …' is not necessary. | N147: Delete 'The'. | O147: Yes | T147: Assigned | V147: Editor
C148: VERSO, BILLY | E148: 368 | F148: No | G148: Qorvo | H148: Editorial | I148: 51 | J148: 10.32.3.5 | K148: 1 | L148: The Figure 9 shows | N148: change to "Figure 9 shows" | O148: No | T148: Assigned | V148: Editor
C149: VERSO, BILLY | E149: 369 | F149: No | G149: Qorvo | H149: Editorial | I149: 51 | J149: 10.32.3.5 | K149: 3 | L149: Ranging Block Description List Fields | N149: change "Fields" to "fields" | O149: No | T149: Assigned | V149: Editor
C150: LI, HuanBang | E150: 127 | F150: Yes | G150: NICT | H150: Editorial | I150: 51 | J150: 10.32.3.5 | K150: 4 | L150: … are set one …' should be '… are set to one …'. | N150: make change. | O150: Yes | T150: Assigned | V150: Editor
C151: VERSO, BILLY | E151: 370 | F151: No | G151: Qorvo | H151: Editorial | I151: 51 | J151: 10.32.3.5 | K151: 4 | L151: RSTU is used as block duration units, so the Ranging Block Duration Units field is set to two (0b10) based on Table 9. | N151: change to "The Ranging Block Duration Units field is set to two, indicating that the block duration is specified in RSTU,(as specified in Table 9)." | O151: No | T151: Assigned | V151: Editor
C152: VERSO, BILLY | E152: 371 | F152: No | G152: Qorvo | H152: Editorial | I152: 51 | J152: 10.32.3.5 | K152: 6 | L152: I don't think we need to give all the numbers in decimal, hex and binary in the text description or in Figure 9. | N152: Simplify to decimal representation only, and, add indication/note to say that the third row of each field is giving the "field value" . | O152: No | T152: Assigned | V152: Editor
C153: MAMAN, MICKAEL | E153: 158 | F153: Yes | G153: STMicroelectronics | H153: Technical | I153: 52 | J153: 10.32.8.2 | K153: 5 | L153: MLME-SET.request instead of MLME-STS.request | N153: change to MLME-SET.request | O153: Yes | P153: Accepted | Q153: Doc 15-25-0175-04-04ab-lb213-easy-comments-lhf.docx | T153: Ready
C154: VERSO, BILLY | E154: 372 | F154: No | G154: Qorvo | H154: Technical | I154: 53 | J154: 10.32.9.3 | K154: 17 | L154: The statement "In the case of hyper block mode, only the least significant 8 bits are used to specify the block index." Could be a little more clear, if it instead quotes the allowed value range as per the proposed change. | N154: Change the sentence to say, "In hyper block mode, the Round Index field is used to specify the block index, and this shall be limited to the range 0 to 255. When not in hyper block mode the full 16-bit field allows for a round index range of 0 to 65535." | O154: Yes | Q154: Doc 15-25-0179-00-04ab-lb213-lhf-needing-confirmation-or-discussion.docx | T154: Assigned | V154: Youngwan
C155: VERSO, BILLY | E155: 373 | F155: No | G155: Qorvo | H155: Editorial | I155: 53 | J155: 10.32.9.10 | K155: 26 | L155: RCM messages | N155: change to RCMs | O155: No | T155: Assigned | V155: Editor
C156: VERSO, BILLY | E156: 374 | F156: No | G156: Qorvo | H156: Technical | I156: 54 | J156: 10.32.9.10 | K156: 3 | L156: Is it correct that "The Scheduling List Length field indicates the length in octets of the Scheduling List field.", it seems more likely that it would the number of elements in the list rather than the number of octets, since thew field is only 4 bits, sixteen octets seems a little small given that for instance, Figure 13, Scheduling List field element format seems to have 19 octets in a single element. | N156: State this field it is the number of elements, and not the length in octets. | O156: Yes | T156: Suggested Assignment | U156: Youngwan (Scheduling IE)
C157: VERSO, BILLY | E157: 375 | F157: No | G157: Qorvo | H157: Editorial | I157: 54 | J157: 10.32.9.10 | K157: 5 | L157: schedules one slot to a device | N157: Consider changing this and all similar to "assigns a slot to a device", or similar. | O157: No | T157: Assigned | V157: Editor
C158: VERSO, BILLY | E158: 376 | F158: No | G158: Qorvo | H158: Editorial | I158: 54 | J158: 10.32.9.10 | K158: 5 | L158: Would be helpful to cross reference to the figure that gives the format | N158: Add "using the Scheduling List field element format given in as Figure 11".. And add similar forward references in the paragraphs beginning on lines: 6, 11, 14,17, 23 of this page. | O158: No | T158: Assigned | V158: Editor
C159: Kivinen, Tero | E159: 88 | F159: No | G159: Wi-SUN Alliance | H159: Editorial | I159: 57 | J159: 10.32.9.10 | K159: 19 | L159: This is first use of RIF outside the tables, expand it here. | N159: Expand RIF here. | O159: No | T159: Assigned | V159: Editor
C160: Kivinen, Tero | E160: 89 | F160: No | G160: Wi-SUN Alliance | H160: Editorial | I160: 58 | J160: 10.32.9.10 | K160: 4 | L160: This is first use of MSR, not on the line 5. | N160: Move the expansion of MSR from line 5 to line 4. | O160: No | T160: Assigned | V160: Editor
C161: LEE, HONGWON | E161: 118 | F161: No | G161: LG Electronics | H161: Technical | I161: 58 | J161: 10.32.9.10 | K161: 12 | L161: The Meaning in Table 8 includes detailed values, increasing in multiples of 8 from the Block Scheduling Bitmap Length field value minus 1. However, when the Block Scheduling Bitmap Length field value is 6, the corresponding value is 196, which does not align with the expected multiple-of-8 progression. Therefore, it would be more appropriate for the value to be 192 when the Block Scheduling Bitmap Length field value is 6 | N161: Change "Block Scheduling Bitmap field is 196 bits long" in the Meaning column to "Block Scheduling Bitmap field is 192 bits long" | O161: Yes | T161: Assigned | V161: Hongwon
C162: VERSO, BILLY | E162: 377 | F162: No | G162: Qorvo | H162: Technical | I162: 61 | J162: 10.32.9.12 | K162: 1.1 | L162: Table 9 row 1 is incorrectly talking about the "Ranging Block Description List Length field" when I believe it should be talking about the Ranging Block Duration field | N162: In first row of Table 9 (below headings) description of Ranging Block Duration Units field value zero, change "Size of Ranging Block Description List Length field is one octet, and the Ranging Block Description List field units are in numbers of ranging rounds" to "The size of the Ranging Block Duration field is one octet and its units are ranging rounds" | O162: Yes | Q162: Doc 15-25-0179-00-04ab-lb213-lhf-needing-confirmation-or-discussion.docx | T162: Assigned | V162: Rojan
C163: VERSO, BILLY | E163: 378 | F163: No | G163: Qorvo | H163: Technical | I163: 61 | J163: 10.32.9.12 | K163: 1.2 | L163: Table 9 row 2 is incorrectly talking about the "Ranging Block Description List Length field" when I believe it should be talking about the Ranging Block Duration field | N163: Change description of Ranging Block Duration Units field value of one to: "The size of the Ranging Block Duration field is two octets and its units are ranging slots" | O163: Yes | Q163: Doc 15-25-0179-00-04ab-lb213-lhf-needing-confirmation-or-discussion.docx | T163: Assigned | V163: Rojan
C164: VERSO, BILLY | E164: 379 | F164: No | G164: Qorvo | H164: Technical | I164: 61 | J164: 10.32.9.12 | K164: 1.2 | L164: Table 9 row 3 is incorrectly talking about the "Ranging Block Description List Length field" when I believe it should be talking about the Ranging Block Duration field | N164: Change description of Ranging Block Duration Units field value of two to: "The size of the Ranging Block Duration field is three octets and its units are RSTU" | O164: Yes | Q164: Doc 15-25-0179-00-04ab-lb213-lhf-needing-confirmation-or-discussion.docx | T164: Assigned | V164: Rojan
C165: VERSO, BILLY | E165: 380 | F165: No | G165: Qorvo | H165: Editorial | I165: 63 | J165: 10.32.9.12 | K165: 9 | L165: MMS packet FORMAT is specified in 16.2.11 | N165: add "format" after MMS packet | O165: No | T165: Assigned | V165: Editor
C166: Kivinen, Tero | E166: 90 | F166: No | G166: Wi-SUN Alliance | H166: Editorial | I166: 63 | J166: 1 ine 5 | L166: This is not first use of the HRP-ARDEV, do not expand here. | N166: Remove expansion of HRP-ARDEV. | O166: No | T166: Assigned | V166: Editor
C167: TIAN, BIN | E167: 305 | F167: No | G167: Qualcomm | H167: Editorial | I167: 64 | J167: 10.39.1 | K167: 1 | L167: clause 0 should be clause 16 | N167: as in the comment | O167: Yes | T167: Assigned | V167: Editor
C168: VERSO, BILLY | E168: 381 | F168: No | G168: Qorvo | H168: Editorial | I168: 64 | J168: 10.39.1 | K168: 1 | L168: Ref to Clause 0, should be Clause 13 | N168: Change to "Clause 13" | O168: No | P168: Accepted | T168: DONE
C169: TIAN, BIN | E169: 306 | F169: No | G169: Qualcomm | H169: Technical | I169: 64 | J169: 10.39.1 | K169: 3 | L169: In "MMS packet exchange, and, where O-QPSK PHY shares a common clock source", "and, where" is not proper. Break into two sentences. | N169: as in the comment | O169: Yes | T169: Suggested Assignment | U169: See CI#383, with proposed resolution that fixes this if Accepted. This one can be REVISED with CI#383 resolution disposition
C170: VERSO, BILLY | E170: 382 | F170: No | G170: Qorvo | H170: Editorial | I170: 64 | J170: 10.39.1 | K170: 3 | L170: "at the appropriate times" is on line 7….. For clarify this phrasing should also appear on line 3. | N170: After "to initiate switching into UWB for the MMS UWB packet exchange" add "at the appropriate times"" | O170: No | T170: Assigned | V170: Editor
C171: VERSO, BILLY | E171: 383 | F171: No | G171: Qorvo | H171: Technical | I171: 64 | J171: 10.39.1 | K171: 3 | L171: This says "… and, where O-QPSK PHY shares a common clock source with the UWB PHY, …" however elsewhere the standard says that the O-QPSK PHY for NBA "shall be derived from the same clock reference as the UWB PHY", so there is no need to say have this "where phase since it has to have a common clock source" | N171: Delete: ", where O-QPSK PHY shares a common clock source with the UWB PHY". | O171: Yes | P171: Accepted | Q171: Doc 15-25-0175-04-04ab-lb213-easy-comments-lhf.docx | T171: Ready
C172: PAKROOH, POORIA | E172: 231 | F172: No | G172: Qualcomm | H172: Technical | I172: 64 | J172: 10.39.1 | K172: 6 | L172: Why is HRP UWB Phy is mentioned as an example? UWB driven MMS only uses HRP UWB PHY. | N172: Change line 6 to : "Here HRP UWB PHY described in Clause 16 is employed for.." | O172: Yes | P172: Accepted | T172: DONE
C173: VERSO, BILLY | E173: 384 | F173: No | G173: Qorvo | H173: Editorial | I173: 64 | J173: 10.39.1 | K173: 10 | L173: For clarity should say this is the ranging phase, and maybe we don't need the word "concept" | N173: Change “… illustrate the core MMS UWB ranging transmission concept for …” to “… illustrate the ranging phase transmission for …” | T173: Assigned | V173: Editor
C174: Kivinen, Tero | E174: 91 | F174: No | G174: Wi-SUN Alliance | H174: Editorial | I174: 64 | J174: 10.39.1 | K174: 12 | L174: This is not first use of RIF, do not expand here. | N174: Remove expansion of RIF. | O174: No | T174: Assigned | V174: Editor
C175: MAMAN, MICKAEL | E175: 159 | F175: Yes | G175: STMicroelectronics | H175: Technical | I175: 64 | J175: 10.39.1 | K175: 17 | L175: The value A in ms is linked to macMmsRcpPollNSlots and macMmsRcpRespNSlots. Missing information about macMmsRangingSlotDuration | N175: add " and macMmsRangingSlotDuration to a value of 600 RSTUs" after both to a value of two. | O175: Yes | T175: Assigned | V175: Mickael
C176: MAMAN, MICKAEL | E176: 160 | F176: Yes | G176: STMicroelectronics | H176: Technical | I176: 65 | J176: 10.39.2 | K176: 12 | L176: The report phase is also optionnal for interleaved one-to-one ranging | N176: change "and a report phase" by "and an optionnal report phase" | O176: Yes | T176: Assigned | V176: Alex
C177: PAKROOH, POORIA | E177: 232 | F177: No | G177: Qualcomm | H177: Technical | I177: 65 | J177: 10.39.2 | K177: 15 | L177: Report phase is optional | N177: Change line 12 to: ".., and an optional report phase,.."" | O177: Yes | T177: Assigned | V177: Alex
C178: VERSO, BILLY | E178: 385 | F178: No | G178: Qorvo | H178: Editorial | I178: 65 | J178: 10.39.2 | K178: 16 | L178: "initialization, setup" are mentioned like phases here but not elsewhere, and we have an "initialization and setup" clause that does not call itself a phase. | N178: Review use of ""initialization, setup" and try to make sure they are not called phases. | O178: No | T178: Assigned | V178: Editor
C179: VERSO, BILLY | E179: 386 | F179: No | G179: Qorvo | H179: Editorial | I179: 65 | J179: 10.39.2 | K179: 1900-01-17 | L179: Possibly good to add forward cross-references to the clauses describing the functions/phases mentioned here, and in the paragraph following. | N179: Add cross refereences to functions/phases mentioned in the two paragraphs beginning on lines 16 and 18 respectively. | O179: No | T179: Assigned | V179: Editor
C180: VERSO, BILLY | E180: 387 | F180: No | G180: Qorvo | H180: Editorial | I180: 65 | J180: 10.39.2 | K180: 1900-01-19 | L180: Ref to clause 0, should be Clause 13 | N180: Change to "Clause 13" | O180: No | P180: Accepted | T180: DONE
C181: KREBS, ALEX | E181: 112 | F181: Yes | G181: Apple | H181: Editorial | I181: 65 | J181: MMS UWB ranging overview | K181: 19 | L181: where is clause 0? | N181: define what clause 0 is, or replace clause 0 by a reference to where clause 0 is | O181: Yes | P181: Revised | Q181: Change reference to"Clause 13" | T181: DONE
C182: VERSO, BILLY | E182: 388 | F182: No | G182: Qorvo | H182: Technical | I182: 65 | J182: 10.39.2 | K182: 21 | L182: I think the ranging round may be bigger than these three phases, and indeed we have cases where there are multiple such triplets as sub-rounds in a single ranging round. In this figure showing the three "ranging phases", rather than show this as a ranging round just show the three phases without the upper rectangle. | N182: Remove upper rectangle "ranging round" from Figure 26. | O182: Yes | T182: Assigned | V182: Alex
C183: VERSO, BILLY | E183: 389 | F183: No | G183: Qorvo | H183: Editorial | I183: 65 | J183: 10.39.2 | K183: 31 | L183: "as appropriate" | N183: change to "as appropriate" | O183: No | T183: Assigned | V183: Editor
C184: VERSO, BILLY | E184: 390 | F184: No | G184: Qorvo | H184: Technical | I184: 65 | J184: 10.39.2 | K184: 34 | L184: Given that NBA channel 2 is somewhat special being the default for the initialisation, (and the only channel allowed for advertising packets), which I believe to be because it is not occupied by UNII3 Wi-Fi channels, .... should special measures be recommended / taken to keep this channel somewhat free from NBA ranging traffic. | N184: Maybe exclude this channel from default channel switching, map and/or include some statement recommending it be reserved for init phase packets and not used (by default) for control phase? | O184: Yes | T184: Assigned | V184: Alex
C185: KREBS, ALEX | E185: 113 | F185: Yes | G185: Apple | H185: Editorial | I185: 65 | J185: Overview | K185: 35 | L185: Sentence can be misunderstood as a restriction to not chose default parameters. | N185: Replace by "to negotiate a ranging configuration between initiator and responders." | O185: Yes | T185: Assigned | V185: Editor
C186: VERSO, BILLY | E186: 391 | F186: No | G186: Qorvo | H186: Technical | I186: 65 | J186: 10.39.3.1 | K186: 36 | L186: I think some of the parameters in the referenced table 31 are not really MAC level parameters, but are rather "mms protocol parameters" that the MMS Higher Layers in each device needs to know to drive the MAC appropriately. These NHL configurations are agreed via in band or OOB mechanisms. The macMmsNbInitChannel and macMmsNbInitMode fall into this category. e.g., the MMS NHL knowing the mmsNbInitChannel, should set the phyCurrentChannelInfo appropriately before sending/receiving the init channel messages. etc. | N186: Separate mac PIB attributes, and mms NHL protocol control variables, and update this clause accordingly. | O186: Yes | T186: Assigned | U186: NHL vs MAC -- more complex I can take for now, to make outline proposal for group consideration before progessing. Unless someone else wants to step up | V186: Billy
C187: VERSO, BILLY | E187: 392 | F187: No | G187: Qorvo | H187: Technical | I187: 65 | J187: 10.39.3.1 | K187: 36 | L187: macMmsNbInitChannel should be NHL protocol control variable, PHY channel is selected by phyCurrentChannelInfo | N187: Change macMmsNbInitChannel to mmsNbInitChan parameter to be known by NHL, and update text accordingly. | O187: Yes | T187: Assigned | U187: NHL vs MAC | V187: Billy
C188: VERSO, BILLY | E188: 393 | F188: No | G188: Qorvo | H188: Technical | I188: 66 | J188: 10.39.3.1 | K188: 1 | L188: macMmsNbInitMode should be NHL protocol control variable, O-PQSK PHY config (for TX) is select modes is selected by MCPS-DATA.request TxOptions parameter DataRate (see p25 L#3) | N188: Change macMmsNbInitChannel to mmsNbInitChan parameter to be known by NHL, and update text accordingly. | O188: Yes | T188: Assigned | U188: NHL vs MAC | V188: Billy
C189: VERSO, BILLY | E189: 394 | F189: No | G189: Qorvo | H189: Technical | I189: 66 | J189: 10.39.3.1 | K189: 1 | L189: Instead of "set by the higher layer" | N189: change to "pre-agreed by higher layers" | O189: Yes | T189: Assigned | U189: NHL vs MAC -- more complex | V189: Billy
C190: VERSO, BILLY | E190: 395 | F190: No | G190: Qorvo | H190: Technical | I190: 66 | J190: 10.39.3.2 | K190: 11 | L190: Instead of "configured" | N190: change to "pre-agreed" | O190: Yes | T190: Assigned | U190: NHL vs MAC | V190: Billy
C191: VERSO, BILLY | E191: 396 | F191: No | G191: Qorvo | H191: Technical | I191: 66 | J191: 10.39.3.2 | K191: 17 | L191: macMmsNbInitSlotDuration should be NHL protocol control variable, transmission times (slot boundaries) are determined by when the NHL submits the MCPS-DATA.request with the frame to transmit, (and TxTimeSpecified = RSTU_TIME) | N191: Change macMmsNbInitSlotDuration to mmsNbInitSlotDuration parameter to be known by NHL, and update text accordingly. | O191: Yes | T191: Assigned | U191: NHL vs MAC -- more complex | V191: Billy
C192: VERSO, BILLY | E192: 397 | F192: No | G192: Qorvo | H192: Technical | I192: 66 | J192: 10.39.3.2 | K192: 18 | L192: I reckon it is the NHL that decides to turn on the RX to receive the response. | N192: change "shall" to "should" | O192: Yes | T192: Assigned | U192: NHL vs MAC -- simple | V192: Billy
C193: MAMAN, MICKAEL | E193: 161 | F193: Yes | G193: STMicroelectronics | H193: Technical | I193: 66 | J193: 10.39.3.2 | K193: 22 | L193: If the initiator intends to proceed to the control phase, the Start of Ranging Compact frame Message Control field shall be set to zero, one or two, with the Startup Status field set as SUCCESS. There is no Startup Status field for zero and two configuration | N193: reverse two and one."if the initiator intends to proceed to the control phase, the Start of Ranging Compact frame Message Control field shall be set to zero, two or one with the Startup Status field set as SUCCESS. | O193: Yes | T193: Assigned | V193: Rojan
C194: KREBS, ALEX | E194: 114 | F194: Yes | G194: Apple | H194: Editorial | I194: 66 | J194: Session initialization | K194: 23 | L194: "zero, one, or two" can be misunderstood | N194: change to "zero, or one, or two" | O194: Yes | T194: Assigned | V194: Editor
C195: VERSO, BILLY | E195: 398 | F195: No | G195: Qorvo | H195: Editorial | I195: 66 | J195: 10.39.3.2 | K195: 24 | L195: as "SUCCESS" - editor to consider changing to descriptive values rather than this style. | N195: Editor to rework TABLE 25 values and use, review how things are done in base standard. | O195: No | T195: Assigned | V195: Editor
C196: VERSO, BILLY | E196: 399 | F196: No | G196: Qorvo | H196: Technical | I196: 66 | J196: 10.39.3.2 | K196: 25 | L196: This is a long sentence. Since all compact frames are delevered/sent via MCPS-DATA, the initiator/responder(s) being talked about are mostly already the next higher layer. | N196: Review the paragraph (and clause), from this point of view and change accordingly. | O196: Yes | T196: Assigned | U196: NHL vs MAC -- more complex | V196: Billy
C197: MAMAN, MICKAEL | E197: 162 | F197: Yes | G197: STMicroelectronics | H197: Technical | I197: 66 | J197: 10.39.3.2 | K197: 28 | L197: the field are not always present. Add this condition | N197: line 28 "shall be passed to higher layer if present" | O197: Yes | T197: Assigned | V197: Alex
C198: VERSO, BILLY | E198: 400 | F198: No | G198: Qorvo | H198: Editorial | I198: 67 | J198: 10.39.3.2 | K198: 4 | L198: extra "." at the end of the line | N198: delete the extra "." | O198: No | T198: Assigned | V198: Editor
C199: VERSO, BILLY | E199: 401 | F199: No | G199: Qorvo | H199: Technical | I199: 67 | J199: 10.39.3.2 | K199: 5 | L199: I reckon it is the NHL that decides to turn on the RX to receive the Start of Ranging. | N199: change "shall" to "should" | O199: Yes | T199: Assigned | U199: NHL vs MAC -- simple | V199: Billy
C200: VERSO, BILLY | E200: 402 | F200: No | G200: Qorvo | H200: Technical | I200: 67 | J200: 10.39.3.2 | K200: 11 | L200: I reckon it is the NHL that decides to take the action specified here. | N200: change "shall" to "should" | O200: Yes | T200: Assigned | U200: NHL vs MAC -- simple | V200: Billy
... 464 more rows

Sheet Progress-Status
B2: Comments and Resolution Status | K2: Draft editing Status
B4: Total # Comments | C4: # with Blank resolution | D4: # with non-blank resolution | E4: # with "Rejected" resolution | F4: # with "Accepted" resolution | G4: # with "Revised" resolution | H4: # Assigned | I4: No Resolution, not Assigned | K4: DONE | L4: N/A | N4: PART | O4: Ready | P4: ISSUE | Q4: ASSIGNED | S4: Blanks
B5: =COUNTA(Comments!E:E)-1 -> 663 | C5: =B5-D5 -> 548 | D5: =COUNTA(Comments!P:P)-1 -> 115 | E5: =COUNTIF(Comments!P:P,"Rejected") -> 5 | F5: =COUNTIF(Comments!P:P,"Accepted") -> 98 | G5: =COUNTIF(Comments!P:P,"Revised") -> 12 | H5: =COUNTA(Comments!V:V)-1 -> 448 | I5: =B5-D5-H5 -> 100 | K5: =COUNTIF(Comments!T:T,K4) -> 85 | L5: =COUNTIF(Comments!T:T,L4) -> 5 | N5: =COUNTIF(Comments!T:T,N4) -> 0 | O5: =COUNTIF(Comments!T:T,O4) -> 25 | P5: =COUNTIF(Comments!T:T,P4) -> 0 | Q5: =COUNTIF(Comments!T:T,Q4) -> 448 | S5: =B5-(COUNTA(Comments!T:T)-1) -> 66
B7: Technical | C7: Editorial | D7: =IF(D5=E7,"Okay","MIS-MATCHED") -> Okay | E7: =E5+F5+G5 -> 115 | K7: =SUM(K5:L5) -> 90 | L7: Done + N/A
B8: =COUNTIF(Comments!H:H,B7) -> 449 | C8: =COUNTIF(Comments!H:H,C7) -> 208
B9: General | C9: =IF(B5=C10,"Okay","MIS-MATCHED") -> Okay | D9: =D5/$B5 -> 0.173453997 | E9: 0.00754147813 | F9: 0.1478129713 | G9: 0.01809954751 | H9: 0.6757164404 | I9: 0.1508295626 | K9: =K7/$B$5 -> 0.1357466063 | L9: of total | N9: =N5/$B$5 -> 0 | O9: =O5/$B$5 -> 0.03770739065 | P9: =P5/$B$5 -> 0 | Q9: =Q5/$B$5 -> 0.6757164404 | S9: =S5/$B$5 -> 0.09954751131
B10: =COUNTIF(Comments!H:H,B9) -> 6 | C10: =C8+B8+B10 -> 663
K11: =K9+SUM(N9:Q9) -> 0.8491704374
B19: Assigned Comments
B21: Alex | C21: Aniruddh | D21: Ben | E21: Billy | F21: Bin Q | G21: Carl | H21: Carlos | I21: Editor | J21: Frank | K21: Hongwon | L21: Huan-Bang | N21: Jinjing | O21: Kangjin | P21: Larry | Q21: Li-Hsiang | S21: Mickael | T21: Pooria | U21: Riku | V21: Rojan | W21: Tero | X21: Wenzheng | Y21: Xiliang | AA21: Youngwan | AB21: SUM
B22: =COUNTIF(Comments!V:V,B21) -> 59 | C22: =COUNTIF(Comments!V:V,C21) -> 0 | D22: =COUNTIF(Comments!V:V,D21) -> 3 | E22: =COUNTIF(Comments!V:V,E21) -> 61 | F22: =COUNTIF(Comments!V:V,F21) -> 0 | G22: =COUNTIF(Comments!V:V,G21) -> 0 | H22: =COUNTIF(Comments!V:V,H21) -> 0 | I22: =COUNTIF(Comments!V:V,I21) -> 126 | J22: =COUNTIF(Comments!V:V,J21) -> 0 | K22: =COUNTIF(Comments!V:V,K21) -> 10 | L22: =COUNTIF(Comments!V:V,L21) -> 6 | N22: =COUNTIF(Comments!V:V,N21) -> 0 | O22: =COUNTIF(Comments!V:V,O21) -> 0 | P22: =COUNTIF(Comments!V:V,P21) -> 12 | Q22: =COUNTIF(Comments!V:V,Q21) -> 0 | S22: =COUNTIF(Comments!V:V,S21) -> 9 | T22: =COUNTIF(Comments!V:V,T21) -> 40 | U22: =COUNTIF(Comments!V:V,U21) -> 21 | V22: =COUNTIF(Comments!V:V,V21) -> 52 | W22: =COUNTIF(Comments!V:V,W21) -> 0 | X22: =COUNTIF(Comments!V:V,X21) -> 0 | Y22: =COUNTIF(Comments!V:V,Y21) -> 21 | AA22: =COUNTIF(Comments!V:V,AA21) -> 23 | AB22: =SUM(B22:AA22) -> 443
B27: Comments with Proposed Resolutions
B29: Alex | C29: Aniruddh | D29: Ben | E29: Billy | F29: Bin Q | G29: Carl | H29: Carlos | I29: Editor | J29: Frank | K29: Hongwon | L29: Jinjing | N29: Kangjin | O29: Larry | P29: Li-Hsiang | Q29: Mickael | S29: Pooria | T29: Riku | U29: Rojan | V29: Tero | W29: Wenzheng | X29: Xiliang | Y29: Youngwan | AA29: SUM
AA30: =SUM(B30:Y30) -> 0
B35: Comments without Proposed Resolutions
B37: Alex | C37: Aniruddh | D37: Ben | E37: Billy | F37: Bin Q | G37: Carl | H37: Carlos | I37: Editor | J37: Frank | K37: Hongwon | L37: Jinjing | N37: Kangjin | O37: Larry | P37: Li-Hsiang | Q37: Mickael | S37: Pooria | T37: Riku | U37: Rojan | V37: Tero | W37: Wenzheng | X37: Xiliang | Y37: Youngwan | AA37: SUM
AA38: =SUM(B38:Y38) -> 0
T205: DONE
T212: DONE
T218: DONE
Z406: Was Editorial now Technical, Needs Assignment. Perhaps to Alex, if he agrees, since he has other comments on the same part of the doc already assigned to him.
U483: This is a complicated figure without proper text description, and not correct. It is using MLME-SCAN which looks for beacons. I think it is better not to put this in until we have descriptive text and corrected figure, following the style used in the base standard.
Z491: Was Editorial now Technical, Needs Assignment. Perhaps to Jinjing since a similar comment #782 is already assigned to him
Z493: Was Editorial now Technical, Needs Assignment. Perhaps to Jinjing since a similar comment #783 is already assigned to him
Z497: Was Editorial now Technical, Needs Assignment. Perhaps to Jinjing since a similar comment #786 is already assigned to him

Sheet Categories
A1: MMS w/NBA | B1: MMS wo/NBA | C1: New frame format | D1: Ack changes | E1: RSS | F1: SSBD | G1: Other channel access | H1: Security | I1: Multi-node ranging / Hyper Block | J1: Narrow Band function | K1: Device discovery Ranging | L1: Device discovery Data | M1: Parameter Negotiation | N1: Wake-up Radio | O1: UWB data offload | P1: Narrow Band PHY | Q1: UWB PHY HRP | R1: UWB PHY LE | S1: Sensing | T1: Dynamic Data Rate Mode | U1: PICS | V1: IEs | W1: OTHER
A2: NBMSS | B2: UWBMSS | C2: NEWFR | D2: ACK | E2: RSS | F2: SSBD | G2: CHA | H2: SEC | I2: HB | J2: NBF | K2: DISC-R | L2: DISC-D | M2: PARNEG | N2: WUR | O2: UWBDO | P2: PHYNB | Q2: PHYHRP | R2: PHYLE | S2: SENS | T2: DDRN | U2: PICS | W2: OTHER
A3: Alex | B3: Carl | C3: Alex | D3: Billy | E3: Sven | F3: Larry | G3: Ben | H3: Rojan | I3: Youngwan | J3: Alex | K3: Alex | L3: [Carlos] | M3: Billy | N3: Billy | O3: Youngwan | P3: Bin Q | Q3: Vinod | R3: Larry | S3: Pooria & Bin Q | T3: [Carlos]
F7: 11.2.8
F8: 12.3.2
T205: DONE
T212: DONE
T218: DONE
U406: Was Editorial now Technical, Needs Assignment. Perhaps to Alex, if he agrees, since he has other comments on the same part of the doc already assigned to him.
U483: This is a complicated figure without proper text description, and not correct. It is using MLME-SCAN which looks for beacons. I think it is better not to put this in until we have descriptive text and corrected figure, following the style used in the base standard.
U491: Was Editorial now Technical, Needs Assignment. Perhaps to Jinjing since a similar comment #782 is already assigned to him
U493: Was Editorial now Technical, Needs Assignment. Perhaps to Jinjing since a similar comment #783 is already assigned to him
U497: Was Editorial now Technical, Needs Assignment. Perhaps to Jinjing since a similar comment #786 is already assigned to him

Sheet Detailed Status
A1: Resolution | B1: Accepted | E1: Rejected | G1: Revised | J1: Blank
B2: =COUNTIF(Comments!P:P,"Accepted") -> 98 | E2: =COUNTIF(Comments!P:P,"Rejected") -> 5 | G2: =COUNTIF(Comments!P:P,"Revised") -> 12 | J2: 0
A3: Editor Status | B3: ISSUE | C3: Ready | D3: DONE | E3: Waiting | F3: N/A | G3: ISSUE | H3: Ready | I3: DONE | J3: Ready | K3: Assigned | U3: Unassigned
B4: 0 | C4: 0 | D4: 0 | E4: 0 | F4: 0 | G4: 0 | H4: 0 | I4: 0 | J4: 0 | K4: 0 | U4: 0

Sheet To-Do

Sheet Historical Status
A1: Version | C1: -00 | D1: -01 | E1: -02 | F1: -03 | G1: -04 | H1: -05
A2: Date | C2: 2025-03-31 | H2: 2025-04-10
A3: Occasion | C3: Initial spreadsheet | H3: After 2025-04-10 telecon
A5: Editorial | B5: Total | C5: 216 | H5: 208
C6: =C5/(C5+C19) -> 0.3257918552 | H6: =H5/(H5+H19) -> 0.3137254902
B7: Addressed | C7: 0 | H7: 82
C8: =C7/C5 -> 0 | H8: =H7/H5 -> 0.3942307692
B9: Ready | C9: 0 | H9: 0
C10: =C9/C5 -> 0 | H10: =H9/H5 -> 0
B11: Done | C11: 0 | H11: 80
C12: =C11/C5 -> 0 | H12: =H11/H5 -> 0.3846153846
B13: N/A | C13: 0 | H13: 2
C14: =C13/C5 -> 0 | H14: =H13/H5 -> 0.009615384615
B15: ISSUE | C15: 0 | H15: 0
C16: =C15/C5 -> 0 | H16: =H15/H5 -> 0
B17: To Be Addressed | C17: 216 | H17: 126
C18: =C17/C5 -> 1 | H18: =H17/H5 -> 0.6057692308
A19: Technical/General | B19: Total | C19: 447 | H19: 455
C20: =C19/(C19+C5) -> 0.6742081448 | H20: =H19/(H19+H5) -> 0.6862745098
B21: Addressed | C21: 0 | H21: 33
C22: =C21/C19 -> 0 | H22: =H21/H19 -> 0.07252747253
B23: Ready | C23: 0 | H23: 25
C24: =C23/C19 -> 0 | H24: =H23/H19 -> 0.05494505495
B25: Done | C25: 0 | H25: 5
C26: =C25/C19 -> 0 | H26: =H25/H19 -> 0.01098901099
B27: N/A | C27: 0 | H27: 3
C28: =C27/C19 -> 0 | H28: =H27/H19 -> 0.006593406593
B29: To Be Addressed | C29: 447 | H29: 422
C30: =C29/C19 -> 1 | H30: =H29/H19 -> 0.9274725275
B31: Assigned | C31: 0 | H31: 322
C32: =C31/C19 -> 0 | H32: =H31/H19 -> 0.7076923077
B33: Proposed Resolutions | C33: 0 | H33: 7
C34: =C33/C19 -> 0 | H34: =H33/H19 -> 0.01538461538
B35: Need Proposals | C35: 0 | H35: 315
C36: =C35/C19 -> 0 | H36: =H35/H19 -> 0.6923076923
B37: Not Assigned | C37: 447 | H37: 100
C38: =C37/C19 -> 1 | H38: =H37/H19 -> 0.2197802198
B39: Issue | C39: 0 | H39: 0
A40: Blank | B40: Total

Sheet CAD
A1: Comment ID | B1: Comment # | C1: Name | D1: Style | E1: Index # | F1: Vote | G1: Affiliation | H1: Category | I1: Page | J1: Sub-clause | K1: Line # | L1: Comment | M1: File | N1: Proposed Change | O1: Must Be Satisfied? | P1: Disposition Status (Accepted, Rejected, Revised) | Q1: Disposition Detail | R1: Category | S1: Notes | T1: Editor Status DONE, Ready, N/A) | U1: Editor Notes | V1: Assignee

Sheet Sheet1
A1: Commenter | B1: # Comments
A2: Billy Verso | B2: 345 | C2: =B2/663 -> 0.520361991
A3: Mickael Maman | B3: 80 | C3: 0.1206636501
A4: Tero Kivinen | B4: 65 | C4: 0.09803921569
A5: Pooria Pakrooh | B5: 27 | C5: 0.0407239819
A6: Rojan Chitrakar | B6: 24 | C6: 0.03619909502
A7: Huan-Bang Li | B7: 21 | C7: 0.03167420814
A8: Carlos Aldana | B8: 15 | C8: 0.02262443439
A9: B. Rolfe | B9: 13 | C9: 0.01960784314
A10: Li Panpan | B10: 12 | C10: 0.01809954751
A11: Li-Hsiang Sun | B11: 10 | C11: 0.01508295626
A12: Bin Tian | B12: 10 | C12: 0.01508295626
A13: Alex Krebs | B13: 9 | C13: 0.01357466063
A14: Bin Qian | B14: 7 | C14: 0.01055806938
A15: Riku Pirhonen | B15: 5 | C15: 0.00754147813
A16: Larry Zakaib | B16: 5 | C16: 0.00754147813
A17: Jaegook Lee | B17: 3 | C17: 0.004524886878
A18: Stephen Shellhammer | B18: 2 | C18: 0.003016591252
A19: Vinod Kristem | B19: 2 | C19: 0.003016591252
A20: Dries Neirynck | B20: 2 | C20: 0.003016591252
A21: Menzo Wentink | B21: 2 | C21: 0.003016591252
A22: Frank Leong | B22: 1 | C22: 0.001508295626
A23: Hong Won Lee | B23: 1 | C23: 0.001508295626
A24: Xiliang Luo | B24: 1 | C24: 0.001508295626
A25: Stephan Sand | B25: 1 | C25: 0.001508295626
